fUSD/lending_fUSD_20250804
["ID","MTS","AMOUNT","RATE_DAILY","PERIOD"]
[377218954,1754299848157,-151.0,0.00046393,14]
[377218955,1754299848168,-151.0,0.00046393,14]
[377218956,1754299848178,-151.0,0.00046393,14]
[377218957,1754299848188,-151.0,0.00046393,14]
[377218958,1754299848197,-151.0,0.00046393,14]
[377218959,1754299848207,-151.0,0.00046393,14]
[377218960,1754299848217,-151.0,0.00046393,14]
[377218961,1754299848228,-151.0,0.00046393,14]
[377218962,1754299848238,-1213.0,0.00046393,14]
[377218963,1754299848248,-151.0,0.00046393,14]
[377218964,1754299848258,-151.0,0.00046393,14]
[377218965,1754299848268,-151.0,0.00046393,14]
[377218966,1754299848278,-151.0,0.00046393,14]
[377218967,1754299848288,-1213.0,0.00046393,14]
[377218968,1754299848298,-151.0,0.00046393,14]
[377218969,1754299848308,-154.73384471,0.00046393,14]
[377218970,1754299848317,-1213.0,0.00046393,14]
[377218971,1754299848327,-151.0,0.00046393,14]
[377218972,1754299848337,-1213.0,0.00046393,14]
[377218973,1754299848346,-1213.0,0.00046393,14]
[377218974,1754299848356,-151.0,0.00046393,14]
[377218975,1754299848366,-151.0,0.00046393,14]
[377218976,1754299848376,-151.0,0.00046393,14]
[377218977,1754299848388,-151.0,0.00046393,14]
[377218978,1754299848398,-1213.0,0.00046393,14]
[377218979,1754299848408,-1213.0,0.00046393,14]
[377218980,1754299848423,-1213.0,0.00046393,14]
[377218981,1754299848433,-1213.0,0.00046393,14]
[377218982,1754299848443,-1213.0,0.00046393,14]
[377218983,1754299848563,-151.0,0.00046393,14]
[377218984,1754299848574,-1213.0,0.00046393,14]
[377218985,1754299848584,-151.0,0.00046393,14]
[377218986,1754299848594,-151.0,0.00046393,14]
[377218987,1754299848603,-1213.0,0.00046393,14]
[377218988,1754299848613,-151.0,0.00046393,14]
[377218989,1754299848622,-1213.0,0.00046393,14]
[377218990,1754299848631,-151.0,0.00046393,14]
[377218991,1754299848641,-1213.0,0.00046393,14]
[377218992,1754299848650,-325.47460071,0.00046393,14]
[377218993,1754299848659,-151.0,0.00046393,14]
[377218994,1754299848669,-151.0,0.00046393,14]
[377218995,1754299848678,-151.0,0.00046393,14]
[377218996,1754299848688,-151.0,0.00046393,14]
[377218997,1754299848696,-151.0,0.00046393,14]
[377218998,1754299848705,-151.0,0.00046393,14]
[377218999,1754299848715,-151.0,0.00046393,14]
[377219000,1754299848724,-151.0,0.00046393,14]
[377219001,1754299848733,-151.0,0.00046393,14]
[377219002,1754299848743,-151.0,0.00046393,14]
[377219003,1754299848752,-151.0,0.00046393,14]
[377219004,1754299848761,-151.0,0.00046393,14]
[377219005,1754299848770,-151.0,0.00046393,14]
[377219006,1754299848779,-151.0,0.00046393,14]
[377219007,1754299848789,-302.0,0.00046393,14]
[377219008,1754299848798,-6686.02057425,0.00046393,120]
[377219009,1754299848808,-589.0,0.000464,2]
[377219010,1754299848817,-62748.24,0.000464,14]
[377219011,1754299848826,-513.56151364,0.000464,120]
[377219012,1754299848836,-22422.04224559,0.000464,31]
[377219013,1754299848845,-755.15705471,0.000464,120]
[377219014,1754299848854,-350.96887889,0.000464,2]
[377219015,1754299848864,-6768.98535958,0.000464,2]
[377219016,1754299848874,-325.68,0.000464,120]
[377219017,1754299848883,-150.0,0.00046415,2]
[377219018,1754299848892,-150.0,0.00046439,2]
[377219019,1754299848902,-150.0,0.0004644,14]
[377219020,1754299848911,-150.0,0.0004644,2]
[377219021,1754299848921,-150.0,0.00046444,2]
[377219022,1754299848931,-2269.32658923,0.00046445,2]
[377219023,1754299848941,-150.0,0.0004645,2]
[377219024,1754299848950,-150.0,0.00046459,14]
[377219025,1754299848960,-150.0,0.00046462,2]
[377219026,1754299848969,-996.54,0.00046463,120]
[377219027,1754299848978,-150.0,0.00046464,30]
[377219028,1754299848988,-150.0,0.00046465,2]
[377219029,1754299848999,-6563.0,0.00046466,120]
[377219030,1754299849008,-30605.0,0.00046466,120]
[377219031,1754299849018,-150.0,0.00046472,2]
[377219032,1754299849027,-1000.0,0.00046474,120]
[377219033,1754299849037,-1000.0,0.00046474,120]
[377219034,1754299849046,-1000.0,0.00046474,120]
[377219035,1754299849056,-1000.0,0.00046474,120]
[377219036,1754299849065,-463.23960432,0.00046474,120]
[377219037,1754299849074,-190.87492573,0.00046475,120]
[377219038,1754299849083,-247.94206263,0.00046475,120]
[377219039,1754299849093,-247.94206263,0.00046475,120]
[377219040,1754299849103,-247.94206263,0.00046475,120]
[377219041,1754299849112,-247.94206263,0.00046475,120]
[377219042,1754299849122,-247.94206263,0.00046475,120]
[377219043,1754299849132,-247.94206263,0.00046475,120]
[377219044,1754299849141,-247.94206263,0.00046475,120]
[377219045,1754299849151,-247.94206263,0.00046475,120]
[377219046,1754299849160,-247.94206263,0.00046475,120]
[377219047,1754299849170,-247.94206263,0.00046475,120]
[377219048,1754299849180,-247.94206263,0.00046475,120]
[377219049,1754299849190,-247.94206263,0.00046475,120]
[377219050,1754299849199,-247.94206263,0.00046475,120]
[377219051,1754299849208,-247.94206263,0.00046475,120]
[377219052,1754299849220,-247.94206263,0.00046475,120]
[377219053,1754299849230,-247.94206263,0.00046475,120]
[377219054,1754299849239,-247.94206263,0.00046475,120]
[377219055,1754299849252,-247.94206263,0.00046475,120]
[377219056,1754299849261,-247.94206263,0.00046475,120]
[377219057,1754299849270,-247.94,0.00046475,120]
[377219058,1754299849280,-578.53147948,0.00046475,120]
[377219059,1754299849289,-578.53147948,0.00046475,120]
[377219060,1754299849299,-578.53147948,0.00046475,120]
[377219061,1754299849308,-578.53147948,0.00046475,120]
[377219062,1754299849317,-578.53147948,0.00046475,120]
[377219063,1754299849327,-578.53147948,0.00046475,120]
[377219064,1754299849336,-578.53147948,0.00046475,120]
[377219065,1754299849345,-578.53147948,0.00046475,120]
[377219066,1754299849354,-578.53147948,0.00046475,120]
[377219067,1754299849365,-578.53147948,0.00046475,120]
[377219068,1754299849374,-578.53147948,0.00046475,120]
[377219069,1754299849383,-578.53147948,0.00046475,120]
[377219070,1754299849393,-578.53147948,0.00046475,120]
[377219071,1754299849402,-578.53147948,0.00046475,120]
[377219072,1754299849413,-578.53147948,0.00046475,120]
[377219073,1754299849423,-578.53147948,0.00046475,120]
[377219074,1754299849432,-578.53147948,0.00046475,120]
[377219075,1754299849442,-150.0,0.00046475,2]
[377219076,1754299849451,-246.97115838,0.00046475,120]
[377219077,1754299849461,-150.0,0.00046484,2]
[377219078,1754299849470,-50000.0,0.000465,36]
[377219079,1754299849479,-50000.0,0.000465,37]
[377219080,1754299849489,-57986.27515971,0.000465,120]
[377219081,1754299849499,-2000.0,0.000465,120]
[377219082,1754299849508,-151.0,0.000465,14]
[377219083,1754299849518,-151.0,0.000465,14]
[377219084,1754299849528,-151.0,0.000465,14]
[377219085,1754299849537,-151.0,0.000465,14]
[377219086,1754299849547,-151.0,0.000465,14]
[377219087,1754299849556,-214.927902,0.000465,14]
[377219088,1754299849566,-151.0,0.000465,14]
[377219089,1754299849576,-151.0,0.000465,14]
[377219090,1754299849586,-151.0,0.000465,14]
[377219091,1754299849595,-151.0,0.000465,14]
[377219092,1754299849605,-151.0,0.000465,14]
[377219093,1754299849615,-151.0,0.000465,14]
[377219094,1754299849624,-151.0,0.000465,14]
[377219095,1754299849633,-152.10665,0.000465,14]
[377219096,1754299849642,-151.0,0.000465,14]
[377219097,1754299849651,-151.0,0.000465,14]
[377219098,1754299849661,-151.0,0.000465,14]
[377219099,1754299849669,-151.0,0.000465,14]
[377219100,1754299849679,-199.943647,0.000465,14]
[377219101,1754299849687,-683.431269,0.000465,14]
[377219102,1754299849696,-683.431269,0.000465,14]
[377219103,1754299849706,-151.0,0.000465,14]
[377219104,1754299849716,-151.0,0.000465,14]
[377219105,1754299849725,-286.183478,0.000465,14]
[377219106,1754299849736,-286.183478,0.000465,14]
[377219107,1754299849745,-250.202288,0.000465,14]
[377219108,1754299849756,-151.0,0.000465,14]
[377219109,1754299849765,-151.0,0.000465,14]
[377219110,1754299849775,-151.0,0.000465,14]
[377219111,1754299849784,-8513.79,0.000465,120]
[377219112,1754299849794,-7100.0,0.000465,16]
[377219113,1754299849803,-2821.29,0.000465,14]
[377219114,1754299849814,-351.71034865,0.00046528,120]
[377219115,1754299849824,-312.01142982,0.00046537,30]
[377219116,1754299849833,-1000.0,0.00046543,14]
[377219117,1754299849842,-136104.0,0.00046548,120]
[377219118,1754299849851,-27081.45440068,0.00046548,30]
[377219119,1754299849861,-266.72945235,0.00046548,30]
[377219120,1754299849870,-285.780801,0.00046548,14]
[377219121,1754299849879,-191.39,0.00046551,120]
[377219122,1754299849888,-247.332141,0.00046555,14]
[377219123,1754299849898,-151.0,0.00046555,14]
[377219124,1754299849908,-151.0,0.00046555,14]
[377219125,1754299849918,-151.0,0.00046555,14]
[377219126,1754299849928,-214.927902,0.00046555,14]
[377219127,1754299849937,-151.0,0.00046555,14]
[377219128,1754299849946,-151.937112,0.00046555,14]
[377219129,1754299849956,-151.0,0.00046555,14]
[377219130,1754299849965,-151.0,0.00046555,14]
[377219131,1754299849975,-151.000001,0.00046555,14]
[377219132,1754299849984,-151.0,0.00046555,14]
[377219133,1754299849993,-256.740037,0.00046555,14]
[377219134,1754299850002,-151.0,0.00046555,14]
[377219135,1754299850012,-151.0,0.00046555,14]
[377219136,1754299850021,-151.0,0.00046555,14]
[377219137,1754299850030,-500.04,0.00046555,120]
[377219138,1754299850040,-151.0,0.00046564,14]
[377219139,1754299850049,-161.337801,0.00046564,14]
[377219140,1754299850058,-151.0,0.00046564,14]
[377219141,1754299850067,-151.0,0.00046564,14]
[377219142,1754299850076,-151.0,0.00046564,14]
[377219143,1754299850085,-151.411057,0.00046564,14]
[377219144,1754299850095,-151.0,0.00046564,14]
[377219145,1754299850106,-153.03176,0.00046564,14]
[377219146,1754299850118,-151.0,0.00046564,2]
[377219147,1754299850127,-151.0,0.00046564,2]
[377219148,1754299850136,-206.733752,0.00046564,14]
[377219149,1754299850146,-206.733752,0.00046564,14]
[377219150,1754299850155,-151.0,0.00046564,14]
[377219151,1754299850164,-151.0,0.00046564,14]
[377219152,1754299850174,-151.0,0.00046564,14]
[377219153,1754299850183,-206.738021,0.00046565,14]
[377219154,1754299850192,-206.738021,0.00046565,14]
[377219155,1754299850203,-151.0,0.00046565,14]
[377219156,1754299850212,-247.714864,0.00046565,14]
[377219157,1754299850222,-247.714864,0.00046565,14]
[377219158,1754299850231,-178.26094196,0.00046565,7]
[377219159,1754299850241,-6183911.94615435,0.00046567,7]
[377219160,1754299851078,-476.3,0.00046567,7]
[377219161,1754299851932,-368.54592925,0.0004397,2]
[377219162,1754299851960,-3768.45407075,0.0004397,2]
[377219163,1754299851970,-252913.0956664,0.00046567,7]
[377219164,1754299851982,-4029.19956791,0.00046567,7]
[377219165,1754299851994,-5341.27604253,0.00046567,7]
[377219166,1754299852031,-859.08271526,0.00046567,7]
[377219167,1754299852043,-641.59948216,0.00046567,7]
[377219168,1754299852055,-307.64000001,0.00046567,7]
[377219169,1754299852067,-1048.50466363,0.00046567,7]
[377219170,1754299855219,-1000.0,0.00020858,2]
[377219171,1754299855229,-1000.0,0.0002164,2]
[377219172,1754299855239,-1000.0,0.00022422,2]
[377219173,1754299855249,-1000.0,0.00023204,2]
[377219174,1754299855258,-1000.0,0.00023986,2]
[377219175,1754299855268,-167.41453968,0.00042555,2]
[377219176,1754299855317,-58.97546032,0.00042555,2]
[377219177,1754299855328,-226.39,0.00042578,2]
[377219178,1754299855338,-226.39,0.000426,2]
[377219179,1754299855347,-226.39,0.00042622,2]
[377219180,1754299855357,-400.4959318,0.0004397,2]
[377219184,1754300041314,155.98,0.00013699,2]
[377219186,1754300120059,250.0,0.00015,2]
[377219187,1754300220198,182.24,0.00026673,120]
[377219188,1754300220399,182.24,0.00029636,120]
[377219190,1754300294367,195.99222237,0.0001862,2]
[377219191,1754300319465,220.32018737,0.000189,2]
[377219192,1754300401244,159.0,0.00018999,2]
[377219193,1754300401289,1200.0,0.00018999,2]
[377219194,1754300414597,1294.81,0.00017799,2]
[377219197,1754300589877,400.0,0.0003,120]
[377219200,1754300599382,400.0,0.0003,120]
[377219202,1754300614795,400.0,0.0003,120]
[377219203,1754300621319,518.35222337,0.0003,120]
[377219204,1754300642842,362.58561138,0.0001862,2]
[377219207,1754300702554,300.0,0.00018999,2]
[377219208,1754300704097,1200.0,0.00018999,2]
[377219210,1754300796531,390.35566695,0.0001862,2]
[377219211,1754300848800,189.62,0.00018381,2]
[377219212,1754300891373,2500.0,0.00019,2]
[377219213,1754301001364,1200.0,0.00018999,2]
[377219217,1754301031626,-193.298,0.00019,2]
[377219218,1754301031637,-123.22562598,0.00019,2]
[377219219,1754301031649,-330.55581015,0.00019,2]
[377219220,1754301031661,-1546.21856387,0.00019,2]
[377219221,1754301031673,-915.45098047,0.00019,2]
[377219222,1754301031685,-225.99601953,0.00019,2]
[377219223,1754301031694,-210.10918467,0.00019,2]
[377219224,1754301031704,-1294.81,0.00019529,2]
[377219225,1754301031714,-438.0581882,0.00019804,2]
[377219226,1754301031723,-156.14,0.00020102,2]
[377219227,1754301031733,-255.0,0.0002011,2]
[377219228,1754301031742,-255.0,0.00020115,2]
[377219229,1754301031752,-255.0,0.0002012,2]
[377219230,1754301031761,-257.13577246,0.00020125,2]
[377219231,1754301031771,-1494.32121065,0.00020226,2]
[377219232,1754301031843,-1150.7,0.00020226,2]
[377219233,1754301031855,-476.35554292,0.00020226,2]
[377219234,1754301031867,-890.93803158,0.00020226,2]
[377219235,1754301031876,-151.42,0.00020467,2]
[377219236,1754301031886,-1680.0,0.0002081,2]
[377219238,1754301031895,-15275.28655875,0.000209,4]
[377219240,1754301031905,-300.0,0.000209,2]
[377219241,1754301031914,-698.16721026,0.000209,2]
[377219242,1754301031926,-341.83278974,0.000209,2]
[377219248,1754301032246,-250.0,0.000209,2]
[377219250,1754301032259,-250.0,0.000209,2]
[377219252,1754301032269,-250.0,0.000209,2]
[377219254,1754301032279,-1049.14201088,0.00021032,2]
[377219273,1754301032504,-259.48941325,0.00021032,2]
[377219275,1754301032516,-252.51058675,0.00021032,2]
[377219277,1754301032527,-433.57798912,0.00021032,2]
[377219279,1754301032537,-1167.88233366,0.00021259,2]
[377219281,1754301032549,-126.92766634,0.00021259,2]
[377219282,1754301032558,-250.0,0.00021495,2]
[377219284,1754301032568,-167.84,0.00021495,2]
[377219286,1754301032578,-1069.37,0.00021497,2]
[377219288,1754301032588,-150.0,0.00021615,2]
[377219290,1754301032597,-75.76731365,0.00021616,2]
[377219293,1754301032613,-2344.59989811,0.00021616,2]
[377219295,1754301032624,-343.45527365,0.00021616,2]
[377219298,1754301032650,-582.15312426,0.00021616,2]
[377219299,1754301032668,-1654.02439033,0.00021616,2]
[377219300,1754301032678,-3101.11630934,0.00021722,2]
[377219301,1754301032687,-150.0,0.00021904,2]
[377219302,1754301032696,-3344.38,0.00021918,2]
[377219303,1754301032705,-300.0,0.00021918,2]
[377219304,1754301032715,-5351.57,0.00022112,2]
[377219305,1754301032723,-1542.57,0.0002213,2]
[377219306,1754301032733,-500.0,0.00022145,2]
[377219307,1754301032742,-500.0,0.00022145,2]
[377219308,1754301032751,-327.20926761,0.00022145,2]
[377219309,1754301032760,-500.0,0.00022145,2]
[377219310,1754301032769,-384.80617841,0.00022145,2]
[377219311,1754301032778,-581.08830417,0.00022161,2]
[377219312,1754301032787,-2591.54,0.00022218,2]
[377219313,1754301032796,-666.0,0.00022288,3]
[377219314,1754301032806,-1000.0,0.00022362,2]
[377219316,1754301032815,-2687.11551005,0.00022409,2]
[377219318,1754301032827,-15950.00017098,0.00022409,2]
[377219334,1754301032936,-298.47810465,0.00022409,2]
[377219335,1754301032948,-4964.40621432,0.00022409,2]
[377219336,1754301032958,-927.47,0.00022438,2]
[377219337,1754301032969,-3507.2439224,0.00022442,2]
[377219338,1754301032979,-525.66,0.00022522,2]
[377219339,1754301032990,-150.0,0.00022576,2]
[377219340,1754301033000,-6494.13025257,0.00022649,2]
[377219341,1754301033009,-571.50567077,0.00022654,2]
[377219342,1754301033021,-8236.30437188,0.00022654,2]
[377219343,1754301033034,-423.19060866,0.00022654,2]
[377219345,1754301037562,-1972.01264199,0.00022654,2]
[377219348,1754301037946,-1767.50712416,0.00022654,2]
[377219349,1754301037958,-13243.66958254,0.00022654,2]
[377219350,1754301037968,-150.0,0.00022674,2]
[377219351,1754301037977,-1000.0,0.00022674,2]
[377219352,1754301037986,-1664.9,0.00022735,2]
[377219353,1754301037996,-2080.0,0.00022793,2]
[377219354,1754301038005,-2751.0,0.00022823,2]
[377219355,1754301038015,-150.0,0.00022952,2]
[377219356,1754301038025,-1294.81,0.0002299,2]
[377219357,1754301038035,-600.0,0.00023181,2]
[377219358,1754301038044,-600.0,0.00023181,2]
[377219359,1754301038054,-600.0,0.00023181,2]
[377219360,1754301038063,-555.47,0.00023181,2]
[377219361,1754301038073,-500.0,0.00023359,2]
[377219362,1754301038082,-501.08101476,0.00023359,2]
[377219363,1754301038092,-500.0,0.00023359,2]
[377219364,1754301038101,-167.13,0.00023485,2]
[377219365,1754301038111,-2921.09,0.00023613,2]
[377219366,1754301038120,-6357.03917206,0.00023693,2]
[377219367,1754301038130,-182.24,0.00023709,2]
[377219368,1754301038139,-768.77,0.00023726,2]
[377219369,1754301038149,-200.0,0.00023726,2]
[377219370,1754301038158,-5858.93,0.00023755,2]
[377219372,1754301038168,-175.0,0.00023755,7]
[377219374,1754301038177,-185.09,0.00023793,2]
[377219375,1754301038187,-185.3,0.00023822,30]
[377219376,1754301038197,-1851.96,0.0002385,2]
[377219377,1754301038206,-2750.8,0.00023884,2]
[377219378,1754301038215,-1000.0,0.00023907,2]
[377219379,1754301038225,-1004.40113976,0.00023907,2]
[377219380,1754301038236,-500.0,0.00023922,2]
[377219381,1754301038246,-387.74278711,0.00023922,2]
[377219382,1754301038256,-500.53679601,0.00023922,2]
[377219383,1754301038265,-167.93101435,0.00023922,2]
[377219384,1754301038275,-500.0,0.00023922,2]
[377219385,1754301038284,-161.7608685,0.00023922,2]
[377219386,1754301038294,-500.0,0.00023922,2]
[377219387,1754301038304,-500.0,0.00023922,2]
[377219388,1754301038314,-500.0,0.00023922,2]
[377219389,1754301038323,-500.0,0.00023922,2]
[377219390,1754301038334,-2434.28,0.00024001,2]
[377219391,1754301038344,-1608.46341585,0.00024455,2]
[377219392,1754301038354,-1000.0,0.0002447,2]
[377219393,1754301038364,-1000.0,0.0002447,2]
[377219394,1754301038375,-1000.0,0.0002447,2]
[377219395,1754301038385,-1082.25482019,0.0002447,2]
[377219396,1754301038394,-1000.0,0.0002447,2]
[377219397,1754301038403,-153.42168786,0.000245,2]
[377219398,1754301038414,-264.4,0.00024658,2]
[377219399,1754301038423,-500.0,0.00024693,2]
[377219400,1754301038433,-500.0,0.00024693,2]
[377219401,1754301038444,-500.0,0.00024693,2]
[377219402,1754301038454,-500.0,0.00024693,2]
[377219403,1754301038464,-484.85152696,0.00024693,2]
[377219404,1754301038473,-505.82447395,0.00024693,2]
[377219405,1754301038484,-1294.81,0.0002472,2]
[377219406,1754301038494,-167.13,0.00024777,2]
[377219407,1754301038504,-250.0,0.00024817,2]
[377219408,1754301038513,-1500.0,0.00025018,2]
[377219409,1754301038523,-1500.0,0.00025018,2]
[377219410,1754301038532,-1500.0,0.00025018,2]
[377219411,1754301038542,-1500.0,0.00025018,2]
[377219412,1754301038552,-1851.96,0.00025043,2]
[377219413,1754301038562,-1000.0,0.00025157,2]
[377219414,1754301038571,-1000.0,0.00025241,2]
[377219415,1754301038581,-872.60388033,0.00025241,2]
[377219416,1754301038591,-1000.0,0.00025241,2]
[377219417,1754301038601,-1000.0,0.00025241,2]
[377219418,1754301038613,-172.21055472,0.00025486,2]
[377219419,1754301038622,-2000.0,0.00025566,2]
[377219420,1754301038632,-1000.0,0.00025566,2]
[377219421,1754301038642,-2000.0,0.00025566,2]
[377219422,1754301038651,-2000.0,0.00025566,2]
[377219423,1754301038661,-3631.1,0.00025603,2]
[377219424,1754301038670,-1500.0,0.00025789,2]
[377219425,1754301038680,-1500.0,0.00025789,2]
[377219426,1754301038689,-1500.0,0.00025789,2]
[377219427,1754301038698,-167.13,0.0002607,2]
[377219429,1754301038708,-2500.0,0.00026114,2]
[377219431,1754301038717,-2500.0,0.00026114,2]
[377219433,1754301038726,-2500.0,0.00026114,2]
[377219435,1754301038736,-1851.96,0.00026235,2]
[377219437,1754301038746,-6357.03917198,0.00026255,2]
[377219439,1754301038756,-1000.0,0.00026299,2]
[377219441,1754301038766,-2000.0,0.00026337,2]
[377219443,1754301038776,-2000.0,0.00026337,2]
[377219445,1754301038785,-1504.6690318,0.00026337,2]
[377219447,1754301038795,-1294.81,0.0002645,2]
[377219449,1754301038805,-2151.18468772,0.00026662,2]
[377219451,1754301038815,-3000.0,0.00026662,2]
[377219453,1754301038825,-519.35412072,0.00026662,2]
[377219455,1754301038835,-2500.0,0.00026885,2]
[377219457,1754301038844,-1001.79481161,0.00026885,2]
[377219459,1754301038854,-3500.0,0.0002721,2]
[377219461,1754301038864,-167.13,0.00027362,2]
[377219463,1754301038878,-205.97,0.00027397,2]
[377219465,1754301038888,-300.0,0.00027397,2]
[377219467,1754301038903,-1851.96,0.00027428,2]
[377219469,1754301038912,-3000.0,0.00027433,5]
[377219471,1754301038922,-153.42168786,0.0002749,2]
[377219473,1754301038933,-189.62,0.00027571,2]
[377219475,1754301038942,-151.0,0.0002774,7]
[377219477,1754301038952,-276.841395,0.0002774,7]
[377219479,1754301038961,-4000.0,0.00027758,5]
[377219481,1754301038971,-151.0,0.000279,7]
[377219483,1754301038980,-151.0,0.000279,7]
[377219485,1754301038990,-1000.0,0.00027952,2]
[377219487,1754301038999,-3500.0,0.00027981,5]
[377219489,1754301039009,-500.71859585,0.00028044,5]
[377219491,1754301039019,-1294.81,0.00028181,2]
[377219493,1754301039029,-2463.11437667,0.00028306,5]
[377219495,1754301039039,-4000.0,0.00028529,5]
[377219497,1754301039049,-1851.96,0.00028621,2]
[377219499,1754301039060,-205.97,0.00028767,2]
[377219501,1754301039070,-6357.03917198,0.00028817,2]
[377219503,1754301039079,-3834.8538626,0.00029077,5]
[377219505,1754301039090,-155.98,0.0002911,2]
[377219507,1754301039099,-64097.58,0.00029349,2]
[377219509,1754301039109,-503.40573836,0.00029373,5]
[377219511,1754301039118,-161.59239393,0.00029373,5]
[377219513,1754301039127,-362.254,0.00029784,24]
[377219515,1754301039136,-1294.81,0.00029911,2]
[377219517,1754301039146,-297.4146299,0.0003,30]
[377219519,1754301039155,-205.97,0.00030136,2]
[377219521,1754301039165,-500.0,0.00030226,5]
[377219523,1754301039174,-1000.0,0.00030747,2]
[377219525,1754301039184,-1000.0,0.00030774,5]
[377219527,1754301039193,-157.54384467,0.00030898,2]
[377219529,1754301039203,-153.42168786,0.00031287,2]
[377219531,1754301039212,-502.06916177,0.00031322,5]
[377219533,1754301039222,-6357.03917198,0.00031378,2]
[377219535,1754301039233,-205.97,0.00031506,2]
[377219537,1754301039242,-1294.81,0.00031641,2]
[377219539,1754301039252,-151.0,0.00031707,5]
[377219541,1754301039261,-182.24,0.000326,120]
[377219543,1754301039271,-188.33,0.00032772,2]
[377219545,1754301039281,-1000.0,0.00032799,2]
[377219546,1754301039290,-205.97,0.00032876,2]
[377219547,1754301039300,-600.0,0.00033176,2]
[377219548,1754301039309,-1294.81,0.00033372,2]
[377219549,1754301039318,-204.0,0.000334,2]
[377219550,1754301039328,-1000.0,0.00033542,2]
[377219551,1754301039337,-1150.17070962,0.00033844,10]
[377219552,1754301039346,-6357.03917198,0.0003394,2]
[377219553,1754301039356,-200.0,0.00034,30]
[377219554,1754301039367,-205.97,0.00034246,2]
[377219555,1754301039377,-500.0,0.00034755,5]
[377219556,1754301039386,-157.54384464,0.00034899,2]
[377219557,1754301039395,-153.42168786,0.00035084,2]
[377219559,1754301039406,-1294.81,0.00035102,2]
[377219560,1754301039415,-21363.153708,0.00035292,2]
[377219561,1754301039425,-1000.0,0.00035302,5]
[377219562,1754301039435,-221.86,0.00035393,2]
[377219564,1754301039446,-282.92,0.000355,2]
[377219566,1754301039456,-182.24,0.00035564,120]
[377219568,1754301039465,-205.97,0.00035616,2]
[377219570,1754301039475,-1006.00426771,0.0003585,5]
[377219572,1754301039484,-204.0,0.0003609,2]
[377219574,1754301039493,-1010.34267191,0.00036328,10]
[377219576,1754301039502,-6357.03917198,0.00036502,2]
[377219578,1754301039512,-151.0,0.00036536,15]
[377219580,1754301039521,-1294.81,0.00036833,2]
[377219582,1754301039530,-205.97,0.00036986,2]
[377219583,1754301039540,-280.0,0.000374,30]
[377219584,1754301039550,-15275.28655847,0.00037417,36]
[377219585,1754301039559,-681.49,0.00037458,2]
[377219586,1754301039568,-211.425049,0.00037459,2]
[377219587,1754301039578,-457.2201239,0.00037459,2]
[377219588,1754301039588,-151.0,0.0003759,7]
[377219590,1754301039598,-205.97,0.00038356,2]
[377219592,1754301039607,-1294.81,0.00038563,2]
[377219594,1754301039617,-204.0,0.0003878,2]
[377219596,1754301039626,-153.42168786,0.00038881,2]
[377219598,1754301039636,-500.73495009,0.00038885,5]
[377219599,1754301039645,-157.54384464,0.00038899,2]
[377219601,1754301039655,-2305.97783824,0.00038971,2]
[377219602,1754301039665,-501.91916091,0.0003906,5]
[377219603,1754301039678,-6357.03917198,0.00039064,2]
[377219604,1754301039688,-15090.39,0.00039484,30]
[377219605,1754301039697,-7130.06,0.00039484,2]
[377219606,1754301039707,-205.97,0.00039726,2]
[377219607,1754301039716,-3052.72941814,0.00040193,12]
[377219608,1754301039726,-500.0,0.00040273,5]